[Event "Titled Tuesday Blitz August 1 Late 2023"]
[White "Papasimakopoulos, Alexandros"]
[Black "Penagalapati, Abhinav"]
[WhiteFideId "4244125"]
[BlackFideId "30938210"]
[WhiteElo "2677"]
[BlackElo "2180"]
[Result "1-0"]
[Round "6"]
[TimeControl "180+1"]
[Date "2023.08.01"]
[WhiteClock "0:00:21"]
[BlackClock "0:00:04"]
[Board "90"]

1. e4 {[%clk 0:03:00]}  Nf6 {[%clk 0:02:57]} 2. e5 {[%clk 0:02:57]}  Nd5 {[%clk 0:02:57]} 3. c4 {[%clk 0:02:57]}  Nb6 {[%clk 0:02:58]} 4. c5 {[%clk 0:02:56]}  Nd5 {[%clk 0:02:57]} 5. Nc3 {[%clk 0:02:42]}  Nxc3 {[%clk 0:02:57]} 6. dxc3 {[%clk 0:02:29]}  d6 {[%clk 0:02:57]} 7. cxd6 {[%clk 0:02:28]}  exd6 {[%clk 0:02:57]} 8. Nf3 {[%clk 0:02:28]}  Nc6 {[%clk 0:02:57]} 9. Bf4 {[%clk 0:02:26]}  Bg4 {[%clk 0:02:36]} 10. exd6 {[%clk 0:02:12]}  Bxd6 {[%clk 0:02:33]} 11. Bxd6 {[%clk 0:02:12]}  Qxd6 {[%clk 0:02:29]} 12. Qxd6 {[%clk 0:02:12]}  cxd6 {[%clk 0:02:30]} 13. Be2 {[%clk 0:02:11]}  O-O-O {[%clk 0:02:30]} 14. Kd2 {[%clk 0:02:09]}  Rhe8 {[%clk 0:02:28]} 15. Rhe1 {[%clk 0:02:08]}  Kc7 {[%clk 0:02:28]} 16. h3 {[%clk 0:02:08]}  Bf5 {[%clk 0:02:25]} 17. a4 {[%clk 0:02:03]}  Re6 {[%clk 0:02:16]} 18. Ng5 {[%clk 0:01:57]}  Re5 {[%clk 0:01:53]} 19. f4 {[%clk 0:01:57]}  Rd5+ {[%clk 0:01:52]} 20. Kc1 {[%clk 0:01:51]}  Re8 {[%clk 0:01:51]} 21. Nf3 {[%clk 0:01:48]}  Be4 {[%clk 0:01:32]} 22. Bc4 {[%clk 0:01:44]}  Rf5 {[%clk 0:01:12]} 23. g3 {[%clk 0:01:38]}  d5 {[%clk 0:01:06]} 24. Bb5 {[%clk 0:01:33]}  Rh5 {[%clk 0:01:01]} 25. h4 {[%clk 0:01:31]}  Rh6 {[%clk 0:01:01]} 26. Ng5 {[%clk 0:01:27]}  Re7 {[%clk 0:00:57]} 27. Kd2 {[%clk 0:01:24]}  Na5 {[%clk 0:00:56]} 28. Ra3 {[%clk 0:01:20]}  f5 {[%clk 0:00:56]} 29. b4 {[%clk 0:01:19]}  Nc6 {[%clk 0:00:56]} 30. a5 {[%clk 0:01:11]}  Rd6 {[%clk 0:00:55]} 31. Bxc6 {[%clk 0:01:09]}  Rxc6 {[%clk 0:00:53]} 32. Nf3 {[%clk 0:01:07]}  Kd6 {[%clk 0:00:49]} 33. Nd4 {[%clk 0:01:06]}  Rc4 {[%clk 0:00:47]} 34. Nb5+ {[%clk 0:01:06]}  Ke6 {[%clk 0:00:43]} 35. Nxa7 {[%clk 0:01:04]}  d4 {[%clk 0:00:42]} 36. Nb5 {[%clk 0:01:03]}  dxc3+ {[%clk 0:00:40]} 37. Rxc3 {[%clk 0:00:48]}  Rxb4 {[%clk 0:00:38]} 38. Rc5 {[%clk 0:00:45]}  Ra4 {[%clk 0:00:33]} 39. Nc3 {[%clk 0:00:44]}  Rd4+ {[%clk 0:00:33]} 40. Kc1 {[%clk 0:00:35]}  Kf7 {[%clk 0:00:30]} 41. Nxe4 {[%clk 0:00:32]}  fxe4 {[%clk 0:00:29]} 42. Re3 {[%clk 0:00:28]}  g6 {[%clk 0:00:28]} 43. h5 {[%clk 0:00:27]}  Ra4 {[%clk 0:00:27]} 44. hxg6+ {[%clk 0:00:26]}  hxg6 {[%clk 0:00:28]} 45. Kb2 {[%clk 0:00:26]}  Rd4 {[%clk 0:00:27]} 46. Kc3 {[%clk 0:00:26]}  Rd1 {[%clk 0:00:27]} 47. Rc4 {[%clk 0:00:20]}  Rc1+ {[%clk 0:00:22]} 48. Kb3 {[%clk 0:00:20]}  Rb1+ {[%clk 0:00:22]} 49. Kc2 {[%clk 0:00:20]}  Ra1 {[%clk 0:00:21]} 50. Rcxe4 {[%clk 0:00:20]}  Rxe4 {[%clk 0:00:21]} 51. Rxe4 {[%clk 0:00:21]}  Rxa5 {[%clk 0:00:21]} 52. Rb4 {[%clk 0:00:21]}  Rc5+ {[%clk 0:00:21]} 53. Kd3 {[%clk 0:00:21]}  Rc7 {[%clk 0:00:22]} 54. Ke4 {[%clk 0:00:21]}  Re7+ {[%clk 0:00:21]} 55. Kf3 {[%clk 0:00:21]}  Kf6 {[%clk 0:00:21]} 56. Kg4 {[%clk 0:00:22]}  Rc7 {[%clk 0:00:20]} 57. Rb6+ {[%clk 0:00:22]}  Kf7 {[%clk 0:00:19]} 58. Kg5 {[%clk 0:00:23]}  Rc5+ {[%clk 0:00:19]} 59. Kh4 {[%clk 0:00:23]}  Rc7 {[%clk 0:00:20]} 60. g4 {[%clk 0:00:23]}  Kg7 {[%clk 0:00:20]} 61. Kg5 {[%clk 0:00:23]}  Rc5+ {[%clk 0:00:19]} 62. f5 {[%clk 0:00:19]}  gxf5 {[%clk 0:00:19]} 63. gxf5 {[%clk 0:00:20]}  Rc7 {[%clk 0:00:18]} 64. Rg6+ {[%clk 0:00:20]}  Kf7 {[%clk 0:00:19]} 65. Rh6 {[%clk 0:00:21]}  Kg7 {[%clk 0:00:18]} 66. f6+ {[%clk 0:00:21]}  Kf8 {[%clk 0:00:17]} 67. Kg6 {[%clk 0:00:21]}  Kg8 {[%clk 0:00:14]} 68. Rh1 {[%clk 0:00:20]}  b5 {[%clk 0:00:10]} 69. Ra1 {[%clk 0:00:18]}  Rc8 {[%clk 0:00:10]} 70. Ra7 {[%clk 0:00:19]}  b4 {[%clk 0:00:06]} 71. Rg7+ {[%clk 0:00:18]}  Kh8 {[%clk 0:00:04]} 72. Rh7+ {[%clk 0:00:18]}  Kg8 {[%clk 0:00:05]} 73. f7+ {[%clk 0:00:19]}  Kf8 {[%clk 0:00:05]} 74. Rh8+ {[%clk 0:00:20]}  Ke7 {[%clk 0:00:04]} 75. Rxc8 {[%clk 0:00:21]} 1-0


[Site "https://www.chess.com"]

[Event "Titled Tuesday Blitz August 1 Late 2023"]
[White "Stachanczyk, Jacek"]
[Black "Manukyan, Sargis V."]
[WhiteFideId "1116657"]
[BlackFideId "13303465"]
[WhiteElo "2401"]
[BlackElo "2585"]
[Result "0-1"]
[Round "6"]
[TimeControl "180+1"]
[Date "2023.08.01"]
[WhiteClock "0:00:19"]
[BlackClock "0:00:48"]
[Board "91"]

1. e4 {[%clk 0:02:52]}  e6 {[%clk 0:02:59]} 2. d4 {[%clk 0:02:49]}  d5 {[%clk 0:03:00]} 3. Nd2 {[%clk 0:02:49]}  Nc6 {[%clk 0:02:59]} 4. exd5 {[%clk 0:02:43]}  exd5 {[%clk 0:02:59]} 5. c3 {[%clk 0:02:43]}  Bd6 {[%clk 0:02:58]} 6. Bd3 {[%clk 0:02:40]}  Nge7 {[%clk 0:02:57]} 7. Ndf3 {[%clk 0:02:40]}  Bf5 {[%clk 0:02:57]} 8. Ne2 {[%clk 0:02:39]}  Qd7 {[%clk 0:02:55]} 9. Ng3 {[%clk 0:02:34]}  Bg6 {[%clk 0:02:52]} 10. O-O {[%clk 0:02:32]}  O-O-O {[%clk 0:02:51]} 11. Bb5 {[%clk 0:02:27]}  a6 {[%clk 0:02:50]} 12. Ba4 {[%clk 0:02:26]}  h5 {[%clk 0:02:47]} 13. Ne5 {[%clk 0:02:25]}  Bxe5 {[%clk 0:02:46]} 14. dxe5 {[%clk 0:02:26]}  h4 {[%clk 0:02:46]} 15. Ne2 {[%clk 0:02:24]}  h3 {[%clk 0:02:46]} 16. g3 {[%clk 0:02:23]}  Qg4 {[%clk 0:02:45]} 17. f3 {[%clk 0:02:13]}  Qe6 {[%clk 0:02:42]} 18. f4 {[%clk 0:01:30]}  Be4 {[%clk 0:02:35]} 19. Nd4 {[%clk 0:01:30]}  Nxd4 {[%clk 0:02:34]} 20. cxd4 {[%clk 0:01:31]}  Nf5 {[%clk 0:02:27]} 21. Re1 {[%clk 0:01:04]}  Nxg3 {[%clk 0:02:23]} 22. Be3 {[%clk 0:00:58]}  Qg6 {[%clk 0:02:17]} 23. Kf2 {[%clk 0:00:58]}  Nf5 {[%clk 0:02:08]} 24. Rg1 {[%clk 0:00:57]}  Qh6 {[%clk 0:02:01]} 25. Qg4 {[%clk 0:00:56]}  g6 {[%clk 0:01:52]} 26. Rac1 {[%clk 0:00:54]}  Kb8 {[%clk 0:01:50]} 27. Bc2 {[%clk 0:00:48]}  Qf8 {[%clk 0:01:46]} 28. a3 {[%clk 0:00:43]}  Rh4 {[%clk 0:01:41]} 29. Qg5 {[%clk 0:00:43]}  Qe8 {[%clk 0:01:25]} 30. b4 {[%clk 0:00:38]}  Rc8 {[%clk 0:01:22]} 31. Bb3 {[%clk 0:00:31]}  Qb5 {[%clk 0:01:19]} 32. Rgd1 {[%clk 0:00:31]}  Rch8 {[%clk 0:01:00]} 33. Rc5 {[%clk 0:00:28]}  Qd7 {[%clk 0:00:55]} 34. Rdc1 {[%clk 0:00:27]}  c6 {[%clk 0:00:51]} 35. a4 {[%clk 0:00:27]}  R8h5 {[%clk 0:00:49]} 36. Qf6 {[%clk 0:00:27]}  Rg4 {[%clk 0:00:49]} 37. b5 {[%clk 0:00:20]}  Rg2+ {[%clk 0:00:48]} 38. Kf1 {[%clk 0:00:19]}  Nxe3+ {[%clk 0:00:48]} 0-1


[Site "https://www.chess.com"]

[Event "Titled Tuesday Blitz August 1 Late 2023"]
[White "Graif, William"]
[Black "Shapiro, Daniel"]
[WhiteFideId "2609835"]
[BlackFideId "2001780"]
[WhiteElo "2542"]
[BlackElo "2381"]
[Result "1-0"]
[Round "6"]
[TimeControl "180+1"]
[Date "2023.08.01"]
[WhiteClock "0:00:10"]
[BlackClock "0:00:14"]
[Board "93"]

1. e4 {[%clk 0:03:00]}  c5 {[%clk 0:03:00]} 2. Nc3 {[%clk 0:03:00]}  a6 {[%clk 0:02:59]} 3. g3 {[%clk 0:02:59]}  b5 {[%clk 0:02:57]} 4. Bg2 {[%clk 0:02:59]}  Bb7 {[%clk 0:02:57]} 5. d3 {[%clk 0:03:00]}  e6 {[%clk 0:02:56]} 6. Nh3 {[%clk 0:03:00]}  b4 {[%clk 0:02:51]} 7. Ne2 {[%clk 0:03:00]}  d5 {[%clk 0:02:47]} 8. O-O {[%clk 0:02:58]}  Nf6 {[%clk 0:02:46]} 9. e5 {[%clk 0:02:48]}  Nfd7 {[%clk 0:02:46]} 10. f4 {[%clk 0:02:48]}  Be7 {[%clk 0:02:36]} 11. f5 {[%clk 0:02:31]}  Nxe5 {[%clk 0:01:57]} 12. fxe6 {[%clk 0:02:27]}  O-O {[%clk 0:01:55]} 13. d4 {[%clk 0:01:59]}  Nc4 {[%clk 0:01:48]} 14. exf7+ {[%clk 0:01:44]}  Rxf7 {[%clk 0:01:44]} 15. Rxf7 {[%clk 0:01:44]}  Kxf7 {[%clk 0:01:44]} 16. Nef4 {[%clk 0:01:40]}  cxd4 {[%clk 0:01:25]} 17. Qh5+ {[%clk 0:01:33]}  Kg8 {[%clk 0:01:16]} 18. Ne6 {[%clk 0:00:47]}  Qc8 {[%clk 0:00:58]} 19. Nhg5 {[%clk 0:00:43]}  Bxg5 {[%clk 0:00:40]} 20. Nxg5 {[%clk 0:00:41]}  h6 {[%clk 0:00:27]} 21. Bh3 {[%clk 0:00:36]}  Qf8 {[%clk 0:00:21]} 22. Be6+ {[%clk 0:00:33]}  Kh8 {[%clk 0:00:20]} 23. Nf7+ {[%clk 0:00:20]}  Kh7 {[%clk 0:00:20]} 24. Bxh6 {[%clk 0:00:14]}  gxh6 {[%clk 0:00:17]} 25. Rf1 {[%clk 0:00:14]}  Nc6 {[%clk 0:00:16]} 26. Ng5+ {[%clk 0:00:13]}  Kg7 {[%clk 0:00:16]} 27. Rf7+ {[%clk 0:00:11]}  Kh8 {[%clk 0:00:14]} 28. Rh7# {[%clk 0:00:10]} 1-0


[Site "https://www.chess.com"]

[Event "Titled Tuesday Blitz August 1 Late 2023"]
[White "Grinev, Valeriy"]
[Black "Bueno, Alfeu Junior Varela"]
[WhiteFideId "14117517"]
[BlackFideId "2108879"]
[WhiteElo "2530"]
[BlackElo "2376"]
[Result "0-1"]
[Round "6"]
[TimeControl "180+1"]
[Date "2023.08.01"]
[WhiteClock "0:00:21"]
[BlackClock "0:00:09"]
[Board "94"]

1. Nf3 {[%clk 0:03:00]}  e6 {[%clk 0:02:59]} 2. c4 {[%clk 0:03:01]}  f5 {[%clk 0:03:00]} 3. Nc3 {[%clk 0:03:02]}  b6 {[%clk 0:03:00]} 4. d4 {[%clk 0:03:03]}  Bb7 {[%clk 0:03:00]} 5. g3 {[%clk 0:03:03]}  Nf6 {[%clk 0:03:00]} 6. Bg2 {[%clk 0:03:04]}  Bb4 {[%clk 0:03:01]} 7. O-O {[%clk 0:03:04]}  Bxc3 {[%clk 0:03:02]} 8. bxc3 {[%clk 0:03:03]}  Be4 {[%clk 0:03:02]} 9. Ba3 {[%clk 0:02:59]}  d6 {[%clk 0:03:02]} 10. c5 {[%clk 0:02:59]}  bxc5 {[%clk 0:03:03]} 11. dxc5 {[%clk 0:02:59]}  d5 {[%clk 0:03:03]} 12. c4 {[%clk 0:02:59]}  dxc4 {[%clk 0:02:26]} 13. Qa4+ {[%clk 0:02:55]}  Qd7 {[%clk 0:02:22]} 14. Qxc4 {[%clk 0:02:56]}  Nc6 {[%clk 0:02:16]} 15. Rfd1 {[%clk 0:02:52]}  Bd5 {[%clk 0:02:16]} 16. Qh4 {[%clk 0:02:42]}  O-O {[%clk 0:02:15]} 17. Bb2 {[%clk 0:02:36]}  Rab8 {[%clk 0:02:07]} 18. Bc3 {[%clk 0:02:26]}  Qe7 {[%clk 0:01:46]} 19. Ne5 {[%clk 0:02:17]}  Bxg2 {[%clk 0:01:27]} 20. Kxg2 {[%clk 0:02:16]}  Qxc5 {[%clk 0:01:24]} 21. Bd4 {[%clk 0:01:49]}  Qd5+ {[%clk 0:01:22]} 22. Nf3 {[%clk 0:01:42]}  Nxd4 {[%clk 0:01:10]} 23. Rxd4 {[%clk 0:01:43]}  Qb5 {[%clk 0:01:05]} 24. Rd2 {[%clk 0:01:23]}  Ne4 {[%clk 0:01:00]} 25. Rc2 {[%clk 0:01:23]}  Qb6 {[%clk 0:00:50]} 26. e3 {[%clk 0:01:22]}  c5 {[%clk 0:00:47]} 27. Rd1 {[%clk 0:01:20]}  Qc6 {[%clk 0:00:46]} 28. Ne5 {[%clk 0:01:00]}  Qc7 {[%clk 0:00:32]} 29. Nd7 {[%clk 0:00:55]}  Rbd8 {[%clk 0:00:22]} 30. Nxf8 {[%clk 0:00:55]}  Rxd1 {[%clk 0:00:16]} 31. Nxe6 {[%clk 0:00:55]}  Qc6 {[%clk 0:00:15]} 32. Qe7 {[%clk 0:00:43]}  Ng5+ {[%clk 0:00:09]} 33. e4 {[%clk 0:00:21]}  Qxe4+ {[%clk 0:00:09]} 34. f3 {[%clk 0:00:21]}  Qxf3# {[%clk 0:00:09]} 0-1


[Site "https://www.chess.com"]

[Event "Titled Tuesday Blitz August 1 Late 2023"]
[White "Fiorito, Francisco"]
[Black "Pein, Jonathan"]
[WhiteFideId "180165"]
[BlackFideId "417092"]
[WhiteElo "2526"]
[BlackElo "2401"]
[Result "0-1"]
[Round "6"]
[TimeControl "180+1"]
[Date "2023.08.01"]
[WhiteClock "0:00:00"]
[BlackClock "0:00:03"]
[Board "95"]

1. a3 {[%clk 0:03:00]}  a5 {[%clk 0:02:59]} 2. Nf3 {[%clk 0:02:57]}  Nf6 {[%clk 0:02:59]} 3. b3 {[%clk 0:02:50]}  d5 {[%clk 0:02:58]} 4. Bb2 {[%clk 0:02:51]}  Bf5 {[%clk 0:02:58]} 5. e3 {[%clk 0:02:51]}  e6 {[%clk 0:02:59]} 6. h3 {[%clk 0:02:49]}  h6 {[%clk 0:02:59]} 7. c4 {[%clk 0:02:42]}  c6 {[%clk 0:02:59]} 8. Nc3 {[%clk 0:02:42]}  Na6 {[%clk 0:02:58]} 9. d4 {[%clk 0:02:36]}  Be7 {[%clk 0:02:53]} 10. Be2 {[%clk 0:02:32]}  O-O {[%clk 0:02:51]} 11. O-O {[%clk 0:02:29]}  Nc7 {[%clk 0:02:28]} 12. c5 {[%clk 0:02:28]}  Re8 {[%clk 0:02:19]} 13. b4 {[%clk 0:02:27]}  axb4 {[%clk 0:02:19]} 14. axb4 {[%clk 0:02:28]}  Bf8 {[%clk 0:02:15]} 15. b5 {[%clk 0:02:28]}  cxb5 {[%clk 0:01:41]} 16. Nxb5 {[%clk 0:02:27]}  Ne4 {[%clk 0:01:34]} 17. Rxa8 {[%clk 0:02:18]}  Nxa8 {[%clk 0:01:33]} 18. Ne5 {[%clk 0:02:16]}  f6 {[%clk 0:01:33]} 19. Nd3 {[%clk 0:02:09]}  Nc7 {[%clk 0:01:33]} 20. Nxc7 {[%clk 0:01:57]}  Qxc7 {[%clk 0:01:34]} 21. Nf4 {[%clk 0:01:54]}  b6 {[%clk 0:01:20]} 22. Bh5 {[%clk 0:01:38]}  Rb8 {[%clk 0:01:19]} 23. cxb6 {[%clk 0:01:37]}  Qxb6 {[%clk 0:01:19]} 24. Ba1 {[%clk 0:01:37]}  Bd6 {[%clk 0:01:19]} 25. Ne2 {[%clk 0:01:16]}  Qb3 {[%clk 0:01:15]} 26. Bg4 {[%clk 0:01:12]}  Bxg4 {[%clk 0:01:14]} 27. hxg4 {[%clk 0:01:13]}  Kf7 {[%clk 0:01:07]} 28. Qc1 {[%clk 0:01:01]}  Ra8 {[%clk 0:00:22]} 29. Qc6 {[%clk 0:00:54]}  Ra2 {[%clk 0:00:22]} 30. Qd7+ {[%clk 0:00:52]}  Kg6 {[%clk 0:00:20]} 31. Nc1 {[%clk 0:00:48]}  Qa4 {[%clk 0:00:17]} 32. Qxa4 {[%clk 0:00:04]}  Rxa4 {[%clk 0:00:18]} 33. Nd3 {[%clk 0:00:01]}  Ra3 {[%clk 0:00:15]} 34. Nc1 {[%clk 0:00:01]}  Bb4 {[%clk 0:00:13]} 35. Bb2 {[%clk 0:00:01]}  Ra8 {[%clk 0:00:11]} 36. Nd3 {[%clk 0:00:02]}  Bd6 {[%clk 0:00:10]} 37. f3 {[%clk 0:00:02]}  Nd2 {[%clk 0:00:10]} 38. Rd1 {[%clk 0:00:02]}  Nc4 {[%clk 0:00:10]} 39. Bc1 {[%clk 0:00:03]}  Ra1 {[%clk 0:00:11]} 40. Kf2 {[%clk 0:00:02]}  Ra2+ {[%clk 0:00:10]} 41. Kf1 {[%clk 0:00:02]}  Ra1 {[%clk 0:00:06]} 42. Ke2 {[%clk 0:00:02]}  Ra2+ {[%clk 0:00:07]} 43. Bd2 {[%clk 0:00:02]}  e5 {[%clk 0:00:06]} 44. dxe5 {[%clk 0:00:02]}  fxe5 {[%clk 0:00:07]} 45. e4 {[%clk 0:00:03]}  dxe4 {[%clk 0:00:07]} 46. fxe4 {[%clk 0:00:03]}  Be7 {[%clk 0:00:08]} 47. Nc1 {[%clk 0:00:04]}  Rc2 {[%clk 0:00:08]} 48. Nb3 {[%clk 0:00:04]}  Bg5 {[%clk 0:00:07]} 49. Kd3 {[%clk 0:00:04]}  Na3 {[%clk 0:00:04]} 50. Bxg5 {[%clk 0:00:04]}  Kxg5 {[%clk 0:00:04]} 51. Ra1 {[%clk 0:00:04]}  Rxg2 {[%clk 0:00:03]} 52. Rxa3 {[%clk 0:00:04]}  Kxg4 {[%clk 0:00:04]} 53. Ra7 {[%clk 0:00:00]}  Kh3 {[%clk 0:00:03]} 0-1


[Site "https://www.chess.com"]

[Event "Titled Tuesday Blitz August 1 Late 2023"]
[White "Bach, Matthias"]
[Black "Zhang, Derek"]
[WhiteFideId "4603168"]
[BlackFideId "2087871"]
[WhiteElo "2367"]
[BlackElo "2518"]
[Result "1-0"]
[Round "6"]
[TimeControl "180+1"]
[Date "2023.08.01"]
[WhiteClock "0:00:38"]
[BlackClock "0:00:00"]
[Board "96"]

1. d4 {[%clk 0:03:00]}  d6 {[%clk 0:03:00]} 2. f4 {[%clk 0:03:00]}  e5 {[%clk 0:02:55]} 3. dxe5 {[%clk 0:02:59]}  Nc6 {[%clk 0:02:55]} 4. Nf3 {[%clk 0:02:56]}  Bg4 {[%clk 0:02:53]} 5. Nc3 {[%clk 0:02:55]}  Nh6 {[%clk 0:02:42]} 6. e3 {[%clk 0:02:32]}  dxe5 {[%clk 0:02:06]} 7. Qxd8+ {[%clk 0:02:25]}  Rxd8 {[%clk 0:02:07]} 8. Bb5 {[%clk 0:02:25]}  exf4 {[%clk 0:02:00]} 9. Ne5 {[%clk 0:02:17]}  Bb4 {[%clk 0:01:38]} 10. Nxc6 {[%clk 0:02:09]}  Bxc3+ {[%clk 0:01:24]} 11. Kf2 {[%clk 0:02:04]}  fxe3+ {[%clk 0:00:39]} 12. Bxe3 {[%clk 0:02:02]}  Rd5 {[%clk 0:00:23]} 13. Nxa7+ {[%clk 0:01:23]}  c6 {[%clk 0:00:22]} 14. bxc3 {[%clk 0:01:17]}  cxb5 {[%clk 0:00:22]} 15. h3 {[%clk 0:01:07]}  Bf5 {[%clk 0:00:19]} 16. g4 {[%clk 0:01:06]}  Bxc2 {[%clk 0:00:16]} 17. Bxh6 {[%clk 0:00:58]}  gxh6 {[%clk 0:00:16]} 18. Rhe1+ {[%clk 0:00:57]}  Kd7 {[%clk 0:00:15]} 19. Re2 {[%clk 0:00:53]}  Bd3 {[%clk 0:00:13]} 20. Rd1 {[%clk 0:00:52]}  Ra8 {[%clk 0:00:10]} 21. Nxb5 {[%clk 0:00:48]}  Bxe2 {[%clk 0:00:07]} 22. Rxd5+ {[%clk 0:00:46]}  Kc6 {[%clk 0:00:07]} 23. Kxe2 {[%clk 0:00:46]}  Rxa2+ {[%clk 0:00:06]} 24. Rd2 {[%clk 0:00:42]}  Rxd2+ {[%clk 0:00:05]} 25. Kxd2 {[%clk 0:00:42]}  Kxb5 {[%clk 0:00:06]} 26. Kd3 {[%clk 0:00:42]}  Kc5 {[%clk 0:00:07]} 27. c4 {[%clk 0:00:39]}  f6 {[%clk 0:00:00]} 28. Kc3 {[%clk 0:00:38]} 1-0


[Site "https://www.chess.com"]

[Event "Titled Tuesday Blitz August 1 Late 2023"]
[White "Slavin, Alexey"]
[Black "Sreyas Payyappat"]
[WhiteFideId "24104388"]
[BlackFideId "46674969"]
[WhiteElo "2356"]
[BlackElo "2507"]
[Result "0-1"]
[Round "6"]
[TimeControl "180+1"]
[Date "2023.08.01"]
[WhiteClock "0:00:00"]
[BlackClock "0:00:24"]
[Board "99"]

1. e4 {[%clk 0:02:59]}  c6 {[%clk 0:02:57]} 2. d4 {[%clk 0:02:58]}  d5 {[%clk 0:02:56]} 3. e5 {[%clk 0:02:58]}  Bf5 {[%clk 0:02:53]} 4. Nf3 {[%clk 0:02:58]}  e6 {[%clk 0:02:52]} 5. Be2 {[%clk 0:02:58]}  Ne7 {[%clk 0:02:34]} 6. O-O {[%clk 0:02:57]}  Ng6 {[%clk 0:02:30]} 7. c3 {[%clk 0:02:56]}  Nd7 {[%clk 0:02:27]} 8. a3 {[%clk 0:02:54]}  f6 {[%clk 0:02:26]} 9. exf6 {[%clk 0:02:47]}  gxf6 {[%clk 0:02:21]} 10. Re1 {[%clk 0:02:30]}  Qc7 {[%clk 0:02:10]} 11. b4 {[%clk 0:02:28]}  O-O-O {[%clk 0:02:09]} 12. Nbd2 {[%clk 0:02:25]}  Bd6 {[%clk 0:02:08]} 13. Nb3 {[%clk 0:02:22]}  Rhg8 {[%clk 0:02:06]} 14. Nc5 {[%clk 0:02:16]}  Nxc5 {[%clk 0:01:59]} 15. bxc5 {[%clk 0:02:15]}  Bf4 {[%clk 0:01:58]} 16. Bd3 {[%clk 0:01:56]}  Bxc1 {[%clk 0:01:54]} 17. Bxf5 {[%clk 0:01:50]}  exf5 {[%clk 0:01:49]} 18. Rxc1 {[%clk 0:01:32]}  Rg7 {[%clk 0:01:45]} 19. Kh1 {[%clk 0:01:07]}  Rdg8 {[%clk 0:01:41]} 20. Qd2 {[%clk 0:00:58]}  h5 {[%clk 0:01:36]} 21. h3 {[%clk 0:00:36]}  h4 {[%clk 0:01:31]} 22. Rg1 {[%clk 0:00:32]}  Nf4 {[%clk 0:01:12]} 23. Nxh4 {[%clk 0:00:31]}  Rh7 {[%clk 0:01:10]} 24. g3 {[%clk 0:00:20]}  Nxh3 {[%clk 0:01:03]} 25. Rg2 {[%clk 0:00:19]}  f4 {[%clk 0:00:54]} 26. Re1 {[%clk 0:00:16]}  Rgh8 {[%clk 0:00:45]} 27. Kh2 {[%clk 0:00:15]}  Nxf2 {[%clk 0:00:40]} 28. Qxf2 {[%clk 0:00:12]}  fxg3+ {[%clk 0:00:39]} 29. Qxg3 {[%clk 0:00:04]}  Rxh4+ {[%clk 0:00:36]} 30. Kg1 {[%clk 0:00:05]}  Rh1+ {[%clk 0:00:24]} 31. Kf2 {[%clk 0:00:05]}  Qxg3+ {[%clk 0:00:24]} 32. Rxg3 {[%clk 0:00:00]}  R8h2+ {[%clk 0:00:24]} 0-1


[Site "https://www.chess.com"]

[Event "Titled Tuesday Blitz August 1 Late 2023"]
[White "Kostiukov, Alexandr"]
[Black "Willy, Stephen"]
[WhiteFideId "14108100"]
[BlackFideId "30981468"]
[WhiteElo "2354"]
[BlackElo "2480"]
[Result "0-1"]
[Round "6"]
[TimeControl "180+1"]
[Date "2023.08.01"]
[WhiteClock "0:00:00"]
[BlackClock "0:00:17"]
[Board "101"]

1. g3 {[%clk 0:02:59]}  e5 {[%clk 0:02:59]} 2. Bg2 {[%clk 0:03:00]}  h5 {[%clk 0:02:58]} 3. h3 {[%clk 0:02:52]}  d5 {[%clk 0:02:57]} 4. c4 {[%clk 0:02:52]}  dxc4 {[%clk 0:02:56]} 5. Qa4+ {[%clk 0:02:51]}  Bd7 {[%clk 0:02:56]} 6. Qxc4 {[%clk 0:02:51]}  Bc6 {[%clk 0:02:57]} 7. Nf3 {[%clk 0:02:50]}  h4 {[%clk 0:02:52]} 8. Nxe5 {[%clk 0:02:45]}  Qf6 {[%clk 0:02:40]} 9. Nxc6 {[%clk 0:02:39]}  Nxc6 {[%clk 0:02:41]} 10. Bxc6+ {[%clk 0:02:31]}  bxc6 {[%clk 0:02:41]} 11. g4 {[%clk 0:02:25]}  Ne7 {[%clk 0:02:33]} 12. Nc3 {[%clk 0:02:24]}  O-O-O {[%clk 0:02:25]} 13. d3 {[%clk 0:02:10]}  Nd5 {[%clk 0:02:11]} 14. Qa6+ {[%clk 0:02:02]}  Kb8 {[%clk 0:02:09]} 15. Be3 {[%clk 0:01:41]}  Nxe3 {[%clk 0:02:01]} 16. fxe3 {[%clk 0:01:41]}  Bc5 {[%clk 0:01:51]} 17. Ne4 {[%clk 0:01:13]}  Bb4+ {[%clk 0:01:49]} 18. Kd1 {[%clk 0:01:05]}  Qxb2 {[%clk 0:01:47]} 19. Rc1 {[%clk 0:01:01]}  Rhe8 {[%clk 0:01:42]} 20. Qxc6 {[%clk 0:00:56]}  Ba5 {[%clk 0:01:17]} 21. Qc2 {[%clk 0:00:44]}  Qe5 {[%clk 0:01:09]} 22. Rb1+ {[%clk 0:00:34]}  Bb6 {[%clk 0:01:08]} 23. Kc1 {[%clk 0:00:25]}  Re6 {[%clk 0:01:02]} 24. Rb4 {[%clk 0:00:21]}  Qa5 {[%clk 0:00:46]} 25. Qb3 {[%clk 0:00:13]}  Ka8 {[%clk 0:00:35]} 26. Kb1 {[%clk 0:00:12]}  Bxe3 {[%clk 0:00:20]} 27. Rf1 {[%clk 0:00:11]}  Rb6 {[%clk 0:00:18]} 28. a3 {[%clk 0:00:00]}  Rdb8 {[%clk 0:00:17]} 0-1


[Site "https://www.chess.com"]

[Event "Titled Tuesday Blitz August 1 Late 2023"]
[White "ArchibaldCerveza29"]
[Black "Topalov, Aleksandar"]
[BlackFideId "925659"]
[WhiteElo "2476"]
[BlackElo "2346"]
[Result "0-1"]
[Round "6"]
[TimeControl "180+1"]
[Date "2023.08.01"]
[WhiteClock "0:00:16"]
[BlackClock "0:00:09"]
[Board "102"]

1. e4 {[%clk 0:03:00]}  e6 {[%clk 0:02:59]} 2. d4 {[%clk 0:02:59]}  d5 {[%clk 0:03:00]} 3. Nd2 {[%clk 0:03:00]}  Nf6 {[%clk 0:02:59]} 4. Bd3 {[%clk 0:03:00]}  b6 {[%clk 0:02:55]} 5. Qe2 {[%clk 0:02:52]}  Be7 {[%clk 0:02:47]} 6. Ngf3 {[%clk 0:02:43]}  dxe4 {[%clk 0:02:45]} 7. Nxe4 {[%clk 0:02:41]}  Bb7 {[%clk 0:02:45]} 8. O-O {[%clk 0:02:41]}  O-O {[%clk 0:02:44]} 9. c3 {[%clk 0:02:37]}  Nbd7 {[%clk 0:02:44]} 10. Re1 {[%clk 0:02:33]}  c5 {[%clk 0:02:41]} 11. Bf4 {[%clk 0:02:24]}  cxd4 {[%clk 0:02:35]} 12. cxd4 {[%clk 0:02:15]}  Nxe4 {[%clk 0:02:29]} 13. Bxe4 {[%clk 0:02:16]}  Bxe4 {[%clk 0:02:28]} 14. Qxe4 {[%clk 0:02:17]}  Nf6 {[%clk 0:02:29]} 15. Qe2 {[%clk 0:02:15]}  Rc8 {[%clk 0:02:25]} 16. Rad1 {[%clk 0:02:14]}  Qd5 {[%clk 0:02:18]} 17. a3 {[%clk 0:02:11]}  Qf5 {[%clk 0:02:15]} 18. Bg3 {[%clk 0:02:07]}  Rc2 {[%clk 0:02:13]} 19. Rd2 {[%clk 0:02:04]}  Rxd2 {[%clk 0:02:02]} 20. Qxd2 {[%clk 0:02:05]}  Rc8 {[%clk 0:01:46]} 21. Ne5 {[%clk 0:01:47]}  Rc2 {[%clk 0:01:35]} 22. Qe3 {[%clk 0:01:37]}  Nd5 {[%clk 0:01:20]} 23. Qb3 {[%clk 0:01:32]}  h6 {[%clk 0:01:01]} 24. Qa4 {[%clk 0:01:28]}  Bd6 {[%clk 0:00:36]} 25. Qe8+ {[%clk 0:01:25]}  Kh7 {[%clk 0:00:34]} 26. h3 {[%clk 0:01:07]}  Bxe5 {[%clk 0:00:30]} 27. Rxe5 {[%clk 0:01:08]}  Rc1+ {[%clk 0:00:30]} 28. Kh2 {[%clk 0:01:08]}  Qb1 {[%clk 0:00:29]} 29. Bh4 {[%clk 0:01:00]}  Rh1+ {[%clk 0:00:27]} 30. Kg3 {[%clk 0:01:00]}  Qg6+ {[%clk 0:00:26]} 31. Kf3 {[%clk 0:00:45]}  Qd3+ {[%clk 0:00:26]} 32. Re3 {[%clk 0:00:32]}  Nxe3 {[%clk 0:00:24]} 33. fxe3 {[%clk 0:00:33]}  Qf5+ {[%clk 0:00:20]} 34. Kg3 {[%clk 0:00:31]}  Re1 {[%clk 0:00:17]} 35. Qa8 {[%clk 0:00:27]}  g5 {[%clk 0:00:13]} 36. Kh2 {[%clk 0:00:25]}  gxh4 {[%clk 0:00:13]} 37. Qb7 {[%clk 0:00:26]}  Rxe3 {[%clk 0:00:11]} 38. g3 {[%clk 0:00:15]}  Re2+ {[%clk 0:00:09]} 39. Kg1 {[%clk 0:00:15]}  Qf2+ {[%clk 0:00:09]} 40. Kh1 {[%clk 0:00:16]}  Qh2# {[%clk 0:00:09]} 0-1


[Site "https://www.chess.com"]